[Event "Late-Titled-Tuesday-Blitz-October-10-2023"]
[Site "Chess.com"]
[Date "2023.10.10"]
[Round "2"]
[White "Orest_Vovk"]
[Black "IlanSchnaider"]
[Result "0-1"]
[WhiteElo "2533"]
[BlackElo "2789"]
[TimeControl "180+1"]
[EndTime "14:17:55 PDT"]
[Termination "IlanSchnaider won on time"]

1. h4 {[%clk 0:03:00.9]} 1... e5 {[%clk 0:02:49.7]} 2. h5 {[%clk 0:03:01.1]}
2... d5 {[%clk 0:02:49.3]} 3. h6 {[%clk 0:03:01.2]} 3... Nxh6 {[%clk 0:02:49.2]}
4. d4 {[%clk 0:03:01.3]} 4... e4 {[%clk 0:02:45.7]} 5. Bxh6 {[%clk 0:02:59.2]}
5... gxh6 {[%clk 0:02:45.8]} 6. e3 {[%clk 0:03:00.1]} 6... Rg8 {[%clk
0:02:42.9]} 7. c4 {[%clk 0:03:00.2]} 7... c6 {[%clk 0:02:43.2]} 8. Qb3 {[%clk
0:02:59.6]} 8... Qb6 {[%clk 0:02:21.2]} 9. Nc3 {[%clk 0:02:58.1]} 9... Be6
{[%clk 0:02:06.5]} 10. cxd5 {[%clk 0:02:42.4]} 10... cxd5 {[%clk 0:01:58.2]} 11.
Bb5+ {[%clk 0:02:42.3]} 11... Nc6 {[%clk 0:01:57.2]} 12. Nge2 {[%clk 0:02:41.2]}
12... Bd6 {[%clk 0:01:52]} 13. g3 {[%clk 0:02:27.3]} 13... O-O-O {[%clk
0:01:42.6]} 14. Bxc6 {[%clk 0:02:25.4]} 14... bxc6 {[%clk 0:01:40.3]} 15. Qxb6
{[%clk 0:02:20]} 15... axb6 {[%clk 0:01:40.3]} 16. Rxh6 {[%clk 0:02:20]} 16...
Bf5 {[%clk 0:01:37.8]} 17. Nf4 {[%clk 0:02:02.4]} 17... Rg7 {[%clk 0:01:26.1]}
18. Kd2 {[%clk 0:01:52.1]} 18... Kb7 {[%clk 0:01:23.9]} 19. a3 {[%clk
0:01:31.4]} 19... Be7 {[%clk 0:01:13.3]} 20. b4 {[%clk 0:01:22.9]} 20... Bg5
{[%clk 0:01:09.7]} 21. Rhh1 {[%clk 0:01:18.9]} 21... Bg4 {[%clk 0:01:07.1]} 22.
a4 {[%clk 0:01:01.1]} 22... Bf3 {[%clk 0:00:59.6]} 23. Rhc1 {[%clk 0:01:00.4]}
23... h5 {[%clk 0:00:56.9]} 24. a5 {[%clk 0:00:47.7]} 24... Bxf4 {[%clk
0:00:55.6]} 25. exf4 {[%clk 0:00:46.8]} 25... b5 {[%clk 0:00:52.3]} 26. Nxb5
{[%clk 0:00:23.9]} 26... cxb5 {[%clk 0:00:49]} 27. Rc5 {[%clk 0:00:24.3]} 27...
Ka6 {[%clk 0:00:46.8]} 28. Rc6+ {[%clk 0:00:20.4]} 28... Ka7 {[%clk 0:00:47.2]}
29. Rc7+ {[%clk 0:00:20.1]} 29... Kb8 {[%clk 0:00:47]} 30. Rc5 {[%clk
0:00:19.2]} 30... Rg6 {[%clk 0:00:46.6]} 31. Rxb5+ {[%clk 0:00:19.1]} 31... Ka7
{[%clk 0:00:47.2]} 32. Rc5 {[%clk 0:00:18]} 32... Rb8 {[%clk 0:00:47]} 33. b5
{[%clk 0:00:17]} 33... Rb7 {[%clk 0:00:38]} 34. b6+ {[%clk 0:00:12.8]} 34... Ka6
{[%clk 0:00:15.1]} 35. Rc8 {[%clk 0:00:12.3]} 35... h4 {[%clk 0:00:12.6]} 36.
gxh4 {[%clk 0:00:11.4]} 36... Bg4 {[%clk 0:00:13.1]} 37. Ra8+ {[%clk 0:00:10.1]}
37... Kb5 {[%clk 0:00:13.5]} 38. Rb1+ {[%clk 0:00:09.9]} 38... Ka4 {[%clk
0:00:09.7]} 39. Ra1+ {[%clk 0:00:06]} 39... Kb5 {[%clk 0:00:09.8]} 40. Rb1+
{[%clk 0:00:05.4]} 40... Ka4 {[%clk 0:00:09.9]} 41. Ra1+ {[%clk 0:00:02.1]}
41... Kb4 {[%clk 0:00:10.5]} 42. Rb1+ {[%clk 0:00:03]} 42... Kc4 {[%clk
0:00:11.1]} 43. Ke3 {[%clk 0:00:02.1]} 43... Rc6 {[%clk 0:00:09]} 44. Rc1+
{[%clk 0:00:02.1]} 44... Kb5 {[%clk 0:00:09.7]} 45. Rxc6 {[%clk 0:00:02.1]}
45... Kxc6 {[%clk 0:00:10.6]} 0-1

[Event "Late-Titled-Tuesday-Blitz-October-10-2023"]
[Site "Chess.com"]
[Date "2023.10.10"]
[Round "2"]
[White "chosenpr"]
[Black "ExchangeAB"]
[Result "0-1"]
[WhiteElo "2249"]
[BlackElo "2503"]
[TimeControl "180+1"]
[EndTime "14:17:56 PDT"]
[Termination "ExchangeAB won on time"]

1. e4 {[%clk 0:03:00]} 1... c6 {[%clk 0:02:59.9]} 2. d4 {[%clk 0:03:00.2]} 2...
d5 {[%clk 0:03:00.8]} 3. exd5 {[%clk 0:03:00.9]} 3... cxd5 {[%clk 0:03:01]} 4.
Bd3 {[%clk 0:03:01.8]} 4... Nf6 {[%clk 0:03:00.4]} 5. c3 {[%clk 0:03:00.7]} 5...
Nc6 {[%clk 0:03:00.6]} 6. Bf4 {[%clk 0:03:00.9]} 6... Bg4 {[%clk 0:03:00.5]} 7.
Qb3 {[%clk 0:03:01.4]} 7... Qd7 {[%clk 0:03:01.2]} 8. Nd2 {[%clk 0:03:01.7]}
8... e6 {[%clk 0:03:01.7]} 9. Ngf3 {[%clk 0:03:02.6]} 9... Bd6 {[%clk
0:03:02.4]} 10. Bg3 {[%clk 0:03:02.7]} 10... O-O {[%clk 0:03:02]} 11. O-O {[%clk
0:03:03.4]} 11... Bxf3 {[%clk 0:03:02.3]} 12. Nxf3 {[%clk 0:03:03.7]} 12... Bxg3
{[%clk 0:03:02.7]} 13. hxg3 {[%clk 0:03:04.3]} 13... Rab8 {[%clk 0:03:02.8]} 14.
Rfe1 {[%clk 0:03:02.7]} 14... Na5 {[%clk 0:02:59.4]} 15. Qc2 {[%clk 0:02:59.4]}
15... b5 {[%clk 0:02:58.7]} 16. Ne5 {[%clk 0:03:00]} 16... Qc7 {[%clk
0:02:58.6]} 17. g4 {[%clk 0:02:58.6]} 17... g6 {[%clk 0:02:51.7]} 18. g5 {[%clk
0:02:57]} 18... Nd7 {[%clk 0:02:50.8]} 19. Qe2 {[%clk 0:02:49.9]} 19... Nxe5
{[%clk 0:02:48.4]} 20. dxe5 {[%clk 0:02:48.7]} 20... b4 {[%clk 0:02:40.6]} 21.
cxb4 {[%clk 0:02:45.9]} 21... Rxb4 {[%clk 0:02:41.5]} 22. b3 {[%clk 0:02:44.7]}
22... Qe7 {[%clk 0:02:29.7]} 23. Qd2 {[%clk 0:02:29.2]} 23... Rfb8 {[%clk
0:02:24.6]} 24. Rac1 {[%clk 0:02:13.7]} 24... Nb7 {[%clk 0:02:02.9]} 25. Re3
{[%clk 0:01:46.8]} 25... Nc5 {[%clk 0:01:58.3]} 26. Rh3 {[%clk 0:01:36.8]} 26...
Rd4 {[%clk 0:01:39.8]} 27. Qc3 {[%clk 0:01:35]} 27... Rxd3 {[%clk 0:01:37.7]}
28. Qxc5 {[%clk 0:01:28.1]} 28... Qxc5 {[%clk 0:01:23.8]} 29. Rxc5 {[%clk
0:01:28.3]} 29... Rd1+ {[%clk 0:01:19.3]} 30. Kh2 {[%clk 0:01:28.8]} 30... Rd2
{[%clk 0:01:19.7]} 31. Ra5 {[%clk 0:01:27.1]} 31... Rb7 {[%clk 0:00:56.4]} 32.
f4 {[%clk 0:01:10.3]} 32... Rc7 {[%clk 0:00:56.3]} 33. Rg3 {[%clk 0:00:52.1]}
33... Rcc2 {[%clk 0:00:54.5]} 34. Rxa7 {[%clk 0:00:51.1]} 34... Rxa2 {[%clk
0:00:54.7]} 35. Rxa2 {[%clk 0:00:51.3]} 35... Rxa2 {[%clk 0:00:55.6]} 36. Rd3
{[%clk 0:00:50.6]} 36... Rb2 {[%clk 0:00:52.6]} 37. Kg3 {[%clk 0:00:50.9]} 37...
Kf8 {[%clk 0:00:51.7]} 38. Kf3 {[%clk 0:00:51.7]} 38... Ke7 {[%clk 0:00:51.3]}
39. g3 {[%clk 0:00:50.3]} 39... Kd7 {[%clk 0:00:50.1]} 40. Ke3 {[%clk
0:00:51.1]} 40... Kc6 {[%clk 0:00:48.5]} 41. Kd4 {[%clk 0:00:51.9]} 41... Kb5
{[%clk 0:00:47.7]} 42. Kc3 {[%clk 0:00:46.8]} 42... Rg2 {[%clk 0:00:45.2]} 43.
b4 {[%clk 0:00:41.2]} 43... Rg1 {[%clk 0:00:42.5]} 44. Kd2 {[%clk 0:00:07.8]}
44... Kxb4 {[%clk 0:00:41.6]} 45. Rd4+ {[%clk 0:00:07.4]} 45... Kc5 {[%clk
0:00:41.2]} 46. Ra4 {[%clk 0:00:08.1]} 46... Rxg3 {[%clk 0:00:35.2]} 47. Ra7
{[%clk 0:00:08.5]} 47... Kd4 {[%clk 0:00:35.2]} 48. Rxf7 {[%clk 0:00:08.6]}
48... Rg2+ {[%clk 0:00:35.5]} 49. Ke1 {[%clk 0:00:07.8]} 49... Ke3 {[%clk
0:00:34.8]} 50. Kf1 {[%clk 0:00:08.5]} 50... Rf2+ {[%clk 0:00:35.1]} 51. Kg1
{[%clk 0:00:06.9]} 51... d4 {[%clk 0:00:35.6]} 0-1

[Event "Late-Titled-Tuesday-Blitz-October-10-2023"]
[Site "Chess.com"]
[Date "2023.10.10"]
[Round "2"]
[White "Chessdreamer2020"]
[Black "Kiborg95"]
[Result "0-1"]
[WhiteElo "2540"]
[BlackElo "2813"]
[TimeControl "180+1"]
[EndTime "14:17:57 PDT"]
[Termination "Kiborg95 won by resignation"]

1. e4 {[%clk 0:02:59.3]} 1... d6 {[%clk 0:03:00.9]} 2. d4 {[%clk 0:02:58.7]}
2... Nf6 {[%clk 0:03:01.2]} 3. Nc3 {[%clk 0:02:58.6]} 3... Nbd7 {[%clk
0:03:01.5]} 4. Nge2 {[%clk 0:02:57]} 4... e5 {[%clk 0:03:01.9]} 5. h3 {[%clk
0:02:57.5]} 5... h5 {[%clk 0:03:02]} 6. g3 {[%clk 0:02:57.5]} 6... c6 {[%clk
0:03:02.3]} 7. a4 {[%clk 0:02:57.2]} 7... b6 {[%clk 0:03:02.4]} 8. Bg2 {[%clk
0:02:57.2]} 8... a6 {[%clk 0:03:03]} 9. O-O {[%clk 0:02:57]} 9... Bb7 {[%clk
0:03:03.6]} 10. f4 {[%clk 0:02:56.2]} 10... Be7 {[%clk 0:03:03.5]} 11. Be3
{[%clk 0:02:55.6]} 11... Qc7 {[%clk 0:03:03.3]} 12. Qd2 {[%clk 0:02:50.2]} 12...
O-O {[%clk 0:03:03.2]} 13. Rad1 {[%clk 0:02:35]} 13... Rfe8 {[%clk 0:03:02.7]}
14. Kh2 {[%clk 0:02:32.6]} 14... b5 {[%clk 0:03:01.7]} 15. axb5 {[%clk
0:02:31.2]} 15... axb5 {[%clk 0:03:00.3]} 16. dxe5 {[%clk 0:02:27.8]} 16... dxe5
{[%clk 0:03:00.1]} 17. b3 {[%clk 0:02:18]} 17... b4 {[%clk 0:02:54.4]} 18. Na4
{[%clk 0:02:16.5]} 18... c5 {[%clk 0:02:54.9]} 19. fxe5 {[%clk 0:01:38.1]} 19...
Nxe5 {[%clk 0:02:55.8]} 20. Rxf6 {[%clk 0:01:29.4]} 20... Bxf6 {[%clk
0:02:47.2]} 21. Nxc5 {[%clk 0:01:29.1]} 21... Rad8 {[%clk 0:02:46.1]} 22. Qe1
{[%clk 0:01:23]} 22... Bc8 {[%clk 0:02:39.4]} 23. Nf4 {[%clk 0:01:14.2]} 23...
h4 {[%clk 0:02:36.6]} 24. Rxd8 {[%clk 0:01:06.2]} 24... Qxd8 {[%clk 0:02:34]}
25. Nd5 {[%clk 0:00:58.1]} 25... hxg3+ {[%clk 0:02:28.8]} 26. Qxg3 {[%clk
0:00:59]} 26... Bh4 {[%clk 0:02:28.8]} 27. Qf4 {[%clk 0:00:56.4]} 27... Ng6
{[%clk 0:02:00.1]} 28. Qc7 {[%clk 0:00:41.7]} 28... Qxc7+ {[%clk 0:01:41.1]} 29.
Nxc7 {[%clk 0:00:42.6]} 29... Rd8 {[%clk 0:01:36.6]} 30. Nd5 {[%clk 0:00:42]}
30... Be7 {[%clk 0:01:30]} 31. Nxb4 {[%clk 0:00:40.6]} 31... Bd6+ {[%clk
0:01:26.3]} 32. Kg1 {[%clk 0:00:40]} 32... Nf4 {[%clk 0:01:26.9]} 33. Nd5 {[%clk
0:00:27.2]} 33... Nxh3+ {[%clk 0:01:21.7]} 34. Kf1 {[%clk 0:00:27]} 34... g5
{[%clk 0:01:10.6]} 35. c4 {[%clk 0:00:19.5]} 35... Nf4 {[%clk 0:01:01.4]} 36. b4
{[%clk 0:00:15.5]} 36... Nxg2 {[%clk 0:00:54]} 37. Kxg2 {[%clk 0:00:16.4]} 37...
f5 {[%clk 0:00:54.4]} 38. exf5 {[%clk 0:00:14.5]} 38... Bxf5 {[%clk 0:00:55.3]}
39. Nb7 {[%clk 0:00:11]} 39... Be4+ {[%clk 0:00:51.2]} 40. Kg1 {[%clk
0:00:07.7]} 40... Bxd5 {[%clk 0:00:44.7]} 41. Nxd8 {[%clk 0:00:08]} 41... Bxc4
{[%clk 0:00:44.7]} 42. Nc6 {[%clk 0:00:07.7]} 42... g4 {[%clk 0:00:43]} 43. Kf2
{[%clk 0:00:05.7]} 43... g3+ {[%clk 0:00:41.8]} 44. Kg1 {[%clk 0:00:04.3]} 44...
Kf7 {[%clk 0:00:42.1]} 45. Nd4 {[%clk 0:00:02.5]} 45... Kf6 {[%clk 0:00:42.2]}
46. Nf5 {[%clk 0:00:03]} 46... Kxf5 {[%clk 0:00:41.8]} 47. Bd4 {[%clk
0:00:03.1]} 47... Ke4 {[%clk 0:00:39.2]} 48. Bc3 {[%clk 0:00:03.6]} 48... Kf3
{[%clk 0:00:38]} 49. Be1 {[%clk 0:00:03.8]} 49... g2 {[%clk 0:00:37.4]} 50. Bf2
{[%clk 0:00:03.6]} 50... Bxb4 {[%clk 0:00:37.6]} 51. Bd4 {[%clk 0:00:02.4]}
51... Bd5 {[%clk 0:00:36.1]} 52. Bb6 {[%clk 0:00:02.3]} 52... Bd2 {[%clk
0:00:36.2]} 53. Bd4 {[%clk 0:00:02.7]} 53... Be3+ {[%clk 0:00:36.6]} 54. Bxe3
{[%clk 0:00:03.3]} 54... Kxe3 {[%clk 0:00:37.5]} 55. Kh2 {[%clk 0:00:03.9]}
55... Kf2 {[%clk 0:00:38.1]} 56. Kh3 {[%clk 0:00:04.6]} 56... g1=Q {[%clk
0:00:38.1]} 0-1

[Event "Late-Titled-Tuesday-Blitz-October-10-2023"]
[Site "Chess.com"]
[Date "2023.10.10"]
[Round "2"]
[White "ural58"]
[Black "rookoco"]
[Result "1-0"]
[WhiteElo "2520"]
[BlackElo "2740"]
[TimeControl "180+1"]
[EndTime "14:17:59 PDT"]
[Termination "ural58 won on time"]

1. e4 {[%clk 0:03:00.9]} 1... c5 {[%clk 0:02:59.6]} 2. Nf3 {[%clk 0:02:59.8]}
2... d6 {[%clk 0:02:59.4]} 3. Bb5+ {[%clk 0:02:59.2]} 3... Nd7 {[%clk
0:02:58.4]} 4. a4 {[%clk 0:02:58.1]} 4... Nf6 {[%clk 0:02:54.5]} 5. Nc3 {[%clk
0:02:57]} 5... e6 {[%clk 0:02:49.9]} 6. d4 {[%clk 0:02:52.1]} 6... cxd4 {[%clk
0:02:49]} 7. Qxd4 {[%clk 0:02:52]} 7... Be7 {[%clk 0:02:48.1]} 8. e5 {[%clk
0:02:35.1]} 8... dxe5 {[%clk 0:02:49]} 9. Nxe5 {[%clk 0:02:34.8]} 9... O-O
{[%clk 0:02:42.6]} 10. Nxd7 {[%clk 0:02:33.4]} 10... Bxd7 {[%clk 0:02:31]} 11.
Be3 {[%clk 0:02:33.1]} 11... Qc8 {[%clk 0:02:20.9]} 12. Bxd7 {[%clk 0:02:25.3]}
12... Nxd7 {[%clk 0:02:11.3]} 13. O-O-O {[%clk 0:02:18.2]} 13... Nb6 {[%clk
0:02:08.9]} 14. a5 {[%clk 0:01:50.7]} 14... Nc4 {[%clk 0:02:04]} 15. Qd7 {[%clk
0:01:50.5]} 15... Bf6 {[%clk 0:01:56.2]} 16. Qxc8 {[%clk 0:01:43.9]} 16... Rfxc8
{[%clk 0:01:53.6]} 17. Bd4 {[%clk 0:01:40.5]} 17... Bxd4 {[%clk 0:01:50.7]} 18.
Rxd4 {[%clk 0:01:40.1]} 18... Nxa5 {[%clk 0:01:51.2]} 19. Rhd1 {[%clk
0:01:38.4]} 19... Kf8 {[%clk 0:01:49.7]} 20. Rd7 {[%clk 0:01:37.2]} 20... Ke8
{[%clk 0:01:47.7]} 21. Nb5 {[%clk 0:01:34.2]} 21... Nb3+ {[%clk 0:01:23]} 22.
Kb1 {[%clk 0:01:34.1]} 22... Nc5 {[%clk 0:01:22.9]} 23. Nc7+ {[%clk 0:01:18.7]}
23... Kf8 {[%clk 0:01:21.1]} 24. Nxa8 {[%clk 0:01:19.2]} 24... Nxd7 {[%clk
0:01:20.4]} 25. Rxd7 {[%clk 0:01:19.2]} 25... Rxa8 {[%clk 0:01:20.6]} 26. Rxb7
{[%clk 0:01:19.4]} 26... a5 {[%clk 0:01:18.6]} 27. Ka2 {[%clk 0:01:18.9]} 27...
Rd8 {[%clk 0:01:15.9]} 28. c4 {[%clk 0:01:13.2]} 28... Rd2 {[%clk 0:01:14.8]}
29. c5 {[%clk 0:01:11.6]} 29... Rc2 {[%clk 0:01:11.1]} 30. Rb5 {[%clk
0:01:10.9]} 30... Rxf2 {[%clk 0:01:04.3]} 31. Kb3 {[%clk 0:01:05]} 31... Rxg2
{[%clk 0:01:00.9]} 32. Ka4 {[%clk 0:00:50.4]} 32... Rc2 {[%clk 0:00:49.3]} 33.
Kxa5 {[%clk 0:00:48.7]} 33... e5 {[%clk 0:00:49.5]} 34. Kb6 {[%clk 0:00:48.5]}
34... e4 {[%clk 0:00:46.9]} 35. c6 {[%clk 0:00:48.2]} 35... e3 {[%clk
0:00:25.2]} 36. b4 {[%clk 0:00:45]} 36... f6 {[%clk 0:00:15.3]} 37. Rc5 {[%clk
0:00:23.6]} 37... Rxc5 {[%clk 0:00:14.8]} 38. bxc5 {[%clk 0:00:23.2]} 38... e2
{[%clk 0:00:14.5]} 39. c7 {[%clk 0:00:23.5]} 39... e1=Q {[%clk 0:00:14.2]} 40.
c8=Q+ {[%clk 0:00:23.5]} 40... Ke7 {[%clk 0:00:10.8]} 41. Qb7+ {[%clk
0:00:18.9]} 41... Ke6 {[%clk 0:00:09.3]} 42. Qxg7 {[%clk 0:00:17.9]} 42... Qb4+
{[%clk 0:00:09.2]} 43. Kc6 {[%clk 0:00:18.2]} 43... Qe4+ {[%clk 0:00:07.9]} 44.
Kc7 {[%clk 0:00:15.7]} 44... Qf4+ {[%clk 0:00:05.2]} 45. Kb6 {[%clk 0:00:13.1]}
45... Kd5 {[%clk 0:00:02.9]} 46. Qd7+ {[%clk 0:00:11.3]} 46... Ke5 {[%clk
0:00:03]} 47. Qc7+ {[%clk 0:00:11]} 47... Kf5 {[%clk 0:00:03.2]} 48. Qxf4+
{[%clk 0:00:11.7]} 48... Kxf4 {[%clk 0:00:04.1]} 49. c6 {[%clk 0:00:12.1]} 49...
f5 {[%clk 0:00:04.8]} 50. c7 {[%clk 0:00:12.8]} 50... Kg4 {[%clk 0:00:04.7]} 51.
c8=Q {[%clk 0:00:13.4]} 1-0

[Event "Late-Titled-Tuesday-Blitz-October-10-2023"]
[Site "Chess.com"]
[Date "2023.10.10"]
[Round "2"]
[White "cthake"]
[Black "KorolDimitriy75"]
[Result "0-1"]
[WhiteElo "1963"]
[BlackElo "2415"]
[TimeControl "180+1"]
[EndTime "14:18:04 PDT"]
[Termination "KorolDimitriy75 won by resignation"]

1. c4 {[%clk 0:03:00.9]} 1... c5 {[%clk 0:03:00]} 2. Nc3 {[%clk 0:03:00.8]} 2...
g6 {[%clk 0:03:00.6]} 3. g3 {[%clk 0:02:59.6]} 3... Bg7 {[%clk 0:03:01.2]} 4.
Bg2 {[%clk 0:02:59.6]} 4... Nc6 {[%clk 0:03:02]} 5. e4 {[%clk 0:02:58]} 5... d6
{[%clk 0:03:00.5]} 6. d3 {[%clk 0:02:58.1]} 6... e6 {[%clk 0:02:56.2]} 7. Nge2
{[%clk 0:02:57.6]} 7... Nge7 {[%clk 0:02:56.4]} 8. O-O {[%clk 0:02:57.2]} 8...
O-O {[%clk 0:02:56]} 9. Be3 {[%clk 0:02:55.4]} 9... Nd4 {[%clk 0:02:56.1]} 10.
Qd2 {[%clk 0:02:46.3]} 10... Nec6 {[%clk 0:02:53.4]} 11. Bh6 {[%clk 0:02:36]}
11... a6 {[%clk 0:02:48.2]} 12. Bxg7 {[%clk 0:02:35.5]} 12... Kxg7 {[%clk
0:02:49.1]} 13. Nxd4 {[%clk 0:02:31.5]} 13... Nxd4 {[%clk 0:02:50]} 14. Ne2
{[%clk 0:02:31.4]} 14... Qf6 {[%clk 0:02:47.4]} 15. f4 {[%clk 0:02:25.9]} 15...
Rb8 {[%clk 0:02:35.2]} 16. Nxd4 {[%clk 0:02:13.6]} 16... Qxd4+ {[%clk
0:02:34.7]} 17. Kh1 {[%clk 0:02:14]} 17... b5 {[%clk 0:02:34.4]} 18. cxb5 {[%clk
0:02:01.9]} 18... Rxb5 {[%clk 0:02:18.6]} 19. b3 {[%clk 0:02:01]} 19... Bd7
{[%clk 0:02:10.6]} 20. Rac1 {[%clk 0:02:00.5]} 20... Rb4 {[%clk 0:02:04.4]} 21.
Qc3 {[%clk 0:01:58.4]} 21... Qxc3 {[%clk 0:01:55.6]} 22. Rxc3 {[%clk 0:01:58.5]}
22... a5 {[%clk 0:01:55.8]} 23. e5 {[%clk 0:01:47.7]} 23... dxe5 {[%clk
0:01:15]} 24. Rxc5 {[%clk 0:01:47.6]} 24... exf4 {[%clk 0:01:05.2]} 25. Rxf4
{[%clk 0:01:47.6]} 25... Rxf4 {[%clk 0:00:48]} 26. gxf4 {[%clk 0:01:47.5]} 26...
a4 {[%clk 0:00:47]} 27. Kg1 {[%clk 0:01:45.6]} 27... axb3 {[%clk 0:00:45.5]} 28.
axb3 {[%clk 0:01:45.6]} 28... Rb8 {[%clk 0:00:46]} 29. Rc3 {[%clk 0:01:43.3]}
29... Rb4 {[%clk 0:00:45.5]} 30. Be4 {[%clk 0:01:29.9]} 30... Kf8 {[%clk
0:00:39]} 31. Rc7 {[%clk 0:01:24.3]} 31... Ke8 {[%clk 0:00:38.2]} 32. Rb7 {[%clk
0:01:19.9]} 32... Rxb7 {[%clk 0:00:18.3]} 33. Bxb7 {[%clk 0:01:19]} 33... Ke7
{[%clk 0:00:18.3]} 34. Kf2 {[%clk 0:01:17]} 34... Kd6 {[%clk 0:00:18.4]} 35. Ke3
{[%clk 0:01:16.2]} 35... Kc5 {[%clk 0:00:18.4]} 36. Ba6 {[%clk 0:01:14.7]} 36...
Bc6 {[%clk 0:00:15.4]} 37. Bc4 {[%clk 0:01:12.4]} 37... Bd5 {[%clk 0:00:10.1]}
38. h4 {[%clk 0:01:11.1]} 38... f6 {[%clk 0:00:09.4]} 39. d4+ {[%clk 0:01:08.5]}
39... Kd6 {[%clk 0:00:08.7]} 40. Kd3 {[%clk 0:01:08.2]} 40... Bc6 {[%clk
0:00:07.9]} 41. Kc3 {[%clk 0:01:07.8]} 41... h6 {[%clk 0:00:07]} 42. b4 {[%clk
0:01:06.5]} 42... g5 {[%clk 0:00:07.2]} 43. fxg5 {[%clk 0:01:04.5]} 43... fxg5
{[%clk 0:00:08.1]} 44. hxg5 {[%clk 0:01:04.4]} 44... hxg5 {[%clk 0:00:09]} 45.
Bf1 {[%clk 0:01:03.4]} 45... g4 {[%clk 0:00:08.7]} 46. b5 {[%clk 0:01:03]} 46...
Bd5 {[%clk 0:00:08.2]} 47. Kd2 {[%clk 0:00:57.2]} 47... g3 {[%clk 0:00:08.5]}
48. Kc3 {[%clk 0:00:49.2]} 48... g2 {[%clk 0:00:08.9]} 49. Bxg2 {[%clk
0:00:49.7]} 49... Bxg2 {[%clk 0:00:09.3]} 50. Kb4 {[%clk 0:00:50.5]} 50... Bd5
{[%clk 0:00:08.3]} 51. Ka5 {[%clk 0:00:50.9]} 51... Kc7 {[%clk 0:00:08.3]} 52.
b6+ {[%clk 0:00:50]} 52... Kb7 {[%clk 0:00:08.4]} 53. Kb5 {[%clk 0:00:49.2]}
53... Bc6+ {[%clk 0:00:08.4]} 54. Kc5 {[%clk 0:00:49.5]} 54... Bd5 {[%clk
0:00:08.7]} 55. Kb5 {[%clk 0:00:48.5]} 55... Bf3 {[%clk 0:00:08.5]} 56. Kc5
{[%clk 0:00:48.5]} 56... Be4 {[%clk 0:00:08.6]} 57. Kb5 {[%clk 0:00:48.3]} 57...
Bd5 {[%clk 0:00:08.7]} 58. Kc5 {[%clk 0:00:48.5]} 58... Ka6 {[%clk 0:00:08.7]}
59. Kd6 {[%clk 0:00:44.3]} 59... Kxb6 {[%clk 0:00:09]} 60. Ke5 {[%clk
0:00:44.3]} 60... Kb5 {[%clk 0:00:09.9]} 61. Kf4 {[%clk 0:00:41.3]} 61... Kc4
{[%clk 0:00:10.8]} 62. Ke3 {[%clk 0:00:41.7]} 62... Kc3 {[%clk 0:00:11]} 63. Ke2
{[%clk 0:00:41.3]} 63... Kxd4 {[%clk 0:00:11.3]} 64. Kd2 {[%clk 0:00:41.6]}
64... e5 {[%clk 0:00:12.2]} 65. Ke1 {[%clk 0:00:41.1]} 65... e4 {[%clk
0:00:13.1]} 66. Ke2 {[%clk 0:00:41.3]} 66... e3 {[%clk 0:00:13.9]} 67. Kd1
{[%clk 0:00:41.5]} 67... Bc4 {[%clk 0:00:14.1]} 68. Ke1 {[%clk 0:00:41.7]} 68...
Kd3 {[%clk 0:00:14.3]} 69. Kd1 {[%clk 0:00:41.9]} 69... e2+ {[%clk 0:00:14.1]}
70. Ke1 {[%clk 0:00:42.3]} 70... Bb5 {[%clk 0:00:14.7]} 71. Kf2 {[%clk
0:00:41.7]} 71... Kd2 {[%clk 0:00:15.1]} 0-1

[Event "Late-Titled-Tuesday-Blitz-October-10-2023"]
[Site "Chess.com"]
[Date "2023.10.10"]
[Round "2"]
[White "biostatistician"]
[Black "Arystanner"]
[Result "0-1"]
[WhiteElo "2541"]
[BlackElo "2822"]
[TimeControl "180+1"]
[EndTime "14:18:05 PDT"]
[Termination "Arystanner won on time"]

1. d4 {[%clk 0:03:00]} 1... e6 {[%clk 0:03:00.6]} 2. Nf3 {[%clk 0:02:58.6]} 2...
b6 {[%clk 0:02:57.9]} 3. e4 {[%clk 0:02:57.7]} 3... d5 {[%clk 0:02:54.8]} 4. e5
{[%clk 0:02:56.7]} 4... c5 {[%clk 0:02:54.6]} 5. c3 {[%clk 0:02:56.1]} 5... Ne7
{[%clk 0:02:54]} 6. Bd3 {[%clk 0:02:50.1]} 6... Qd7 {[%clk 0:02:46.1]} 7. Qe2
{[%clk 0:02:45.8]} 7... Ng6 {[%clk 0:02:31.5]} 8. h4 {[%clk 0:02:41.2]} 8... Be7
{[%clk 0:02:19.9]} 9. h5 {[%clk 0:02:40.5]} 9... Nf8 {[%clk 0:02:20.5]} 10. h6
{[%clk 0:02:38.3]} 10... Rg8 {[%clk 0:02:13.8]} 11. g3 {[%clk 0:02:28.8]} 11...
g5 {[%clk 0:02:11.6]} 12. Rh5 {[%clk 0:02:18.2]} 12... g4 {[%clk 0:01:54.1]} 13.
Nh2 {[%clk 0:02:18]} 13... cxd4 {[%clk 0:01:53.6]} 14. cxd4 {[%clk 0:02:17.8]}
14... Nc6 {[%clk 0:01:53.4]} 15. Be3 {[%clk 0:02:18.1]} 15... Nb4 {[%clk
0:01:53]} 16. Bb5 {[%clk 0:02:10.9]} 16... Nc6 {[%clk 0:01:51]} 17. Nc3 {[%clk
0:02:00.2]} 17... a6 {[%clk 0:01:47.6]} 18. Bd3 {[%clk 0:01:54.7]} 18... Nb4
{[%clk 0:01:45.7]} 19. Bb1 {[%clk 0:01:54.3]} 19... a5 {[%clk 0:01:46]} 20. a3
{[%clk 0:01:22.7]} 20... Ba6 {[%clk 0:01:45.5]} 21. Qd1 {[%clk 0:01:21.4]} 21...
Nc6 {[%clk 0:01:43]} 22. Nxg4 {[%clk 0:01:21.2]} 22... b5 {[%clk 0:01:40.1]} 23.
f3 {[%clk 0:01:01.3]} 23... b4 {[%clk 0:01:39.3]} 24. Na4 {[%clk 0:01:00.8]}
24... Qb7 {[%clk 0:01:25.9]} 25. Bd3 {[%clk 0:00:58.9]} 25... Nd7 {[%clk
0:00:59.4]} 26. Rh2 {[%clk 0:00:42.6]} 26... Rh8 {[%clk 0:00:51.6]} 27. Rc2
{[%clk 0:00:34.9]} 27... Bb5 {[%clk 0:00:37.3]} 28. Bxb5 {[%clk 0:00:21.3]}
28... Qxb5 {[%clk 0:00:37.3]} 29. Rac1 {[%clk 0:00:21.6]} 29... bxa3 {[%clk
0:00:26.9]} 30. Rxc6 {[%clk 0:00:20.1]} 30... axb2 {[%clk 0:00:23.4]} 31. Rc8+
{[%clk 0:00:20.3]} 31... Rxc8 {[%clk 0:00:21.6]} 32. Rxc8+ {[%clk 0:00:21.2]}
32... Bd8 {[%clk 0:00:22.3]} 33. Nc3 {[%clk 0:00:15.8]} 33... Qb7 {[%clk
0:00:19]} 34. Rxd8+ {[%clk 0:00:10.5]} 34... Kxd8 {[%clk 0:00:19.9]} 35. Qc2
{[%clk 0:00:10.3]} 35... Qb4 {[%clk 0:00:13.8]} 36. Kd2 {[%clk 0:00:08.9]} 36...
a4 {[%clk 0:00:10.1]} 37. Nf2 {[%clk 0:00:09.1]} 37... a3 {[%clk 0:00:10.4]} 38.
Nd3 {[%clk 0:00:10]} 38... Qa5 {[%clk 0:00:10.6]} 39. Qb3 {[%clk 0:00:08.3]}
39... Rg8 {[%clk 0:00:09.7]} 40. g4 {[%clk 0:00:08]} 40... Ke7 {[%clk
0:00:09.8]} 41. Kc2 {[%clk 0:00:06.5]} 41... Rb8 {[%clk 0:00:10.2]} 42. Qa2
{[%clk 0:00:05.8]} 42... Qa6 {[%clk 0:00:09.3]} 43. Bd2 {[%clk 0:00:05.4]} 43...
Kf8 {[%clk 0:00:09]} 44. Nb1 {[%clk 0:00:05.6]} 44... Kg8 {[%clk 0:00:09.3]} 45.
Nxa3 {[%clk 0:00:05.8]} 45... Qa4+ {[%clk 0:00:09.6]} 46. Kc3 {[%clk 0:00:01.9]}
46... Qd1 {[%clk 0:00:05.5]} 0-1